fUST/lending_fUST_20250819
["ID","MTS","AMOUNT","RATE_DAILY","PERIOD"]
[380091750,1755537054061,-500.0,0.00019473,2]
[380091751,1755537054070,-320.718355,0.00019473,2]
[380091752,1755537054080,-500.0,0.00019473,2]
[380091753,1755537054089,-158.65256514,0.00019473,2]
[380091754,1755537054098,-500.0,0.00019473,2]
[380091755,1755537054107,-500.0,0.00019473,2]
[380091756,1755537054116,-501.32411645,0.00019473,2]
[380091757,1755537054126,-500.0,0.00019473,2]
[380091758,1755537054135,-500.0,0.00019473,2]
[380091759,1755537054144,-500.0,0.00019473,2]
[380091760,1755537054153,-500.0,0.00019473,2]
[380091761,1755537054162,-500.0,0.00019473,2]
[380091762,1755537054171,-500.0,0.00019473,2]
[380091763,1755537054180,-500.0,0.00019473,2]
[380091764,1755537054190,-500.0,0.00019473,2]
[380091765,1755537054199,-158.65429511,0.00019473,2]
[380091766,1755537054208,-185.47411264,0.00019473,2]
[380091767,1755537054217,-500.0,0.00019473,2]
[380091768,1755537054227,-500.0,0.00019473,2]
[380091769,1755537054237,-160.23904751,0.00019473,2]
[380091770,1755537054247,-258.76342241,0.00019473,2]
[380091771,1755537054257,-500.0,0.00019473,2]
[380091772,1755537054266,-463.11178545,0.00019473,2]
[380091773,1755537054275,-500.0,0.00019473,2]
[380091774,1755537054284,-195.74148035,0.00019473,2]
[380091775,1755537054294,-500.0,0.00019473,2]
[380091776,1755537054303,-500.0,0.00019473,2]
[380091777,1755537054313,-348.12328058,0.00019473,2]
[380091778,1755537054323,-500.0,0.00019473,2]
[380091779,1755537054333,-500.0,0.00019473,2]
[380091780,1755537054342,-500.0,0.00019473,2]
[380091781,1755537054351,-500.0,0.00019473,2]
[380091782,1755537054361,-500.0,0.00019473,2]
[380091783,1755537054371,-584.47743907,0.00019473,2]
[380091784,1755537054380,-500.0,0.00019473,2]
[380091785,1755537054390,-500.0,0.00019473,2]
[380091786,1755537054399,-500.0,0.00019473,2]
[380091787,1755537054409,-500.0,0.00019473,2]
[380091788,1755537054418,-500.0,0.00019473,2]
[380091789,1755537054428,-500.0,0.00019473,2]
[380091790,1755537054439,-500.0,0.00019473,2]
[380091791,1755537054449,-500.45548213,0.00019473,2]
[380091792,1755537054458,-500.0,0.00019473,2]
[380091793,1755537054467,-500.0,0.00019473,2]
[380091794,1755537054476,-704.079372,0.00019483,2]
[380091795,1755537054486,-185.048492,0.00019483,2]
[380091796,1755537054495,-185.048492,0.00019483,2]
[380091797,1755537054505,-151.0,0.00019483,2]
[380091798,1755537054514,-318.176526,0.00019483,2]
[380091799,1755537054524,-318.176526,0.00019483,2]
[380091800,1755537054533,-256.975659,0.00019483,2]
[380091801,1755537054542,-782.366469,0.00019483,2]
[380091802,1755537054552,-782.366474,0.00019483,2]
[380091803,1755537054561,-151.0,0.00019483,2]
[380091804,1755537054571,-347.53533,0.00019483,2]
[380091805,1755537054581,-11549.13471563,0.00019483,2]
[380091806,1755537054592,-151.0,0.00019495,2]
[380091807,1755537054602,-2500.0,0.000195,2]
[380091808,1755537054611,-151.0,0.000195,2]
[380091809,1755537054622,-151.853032,0.000195,2]
[380091810,1755537054633,-151.853032,0.000195,2]
[380091811,1755537054643,-192.272535,0.000195,2]
[380091812,1755537054654,-192.272537,0.000195,2]
[380091813,1755537054665,-321.486818,0.000195,2]
[380091814,1755537054675,-321.48682,0.000195,2]
[380091815,1755537054686,-1000.0,0.000195,2]
[380091816,1755537054766,-1000.0,0.00019521,2]
[380091817,1755537054786,-1000.0,0.00019521,2]
[380091818,1755537054806,-177.72858975,0.00019521,2]
[380091819,1755537054822,-1000.0,0.00019521,2]
[380091820,1755537054832,-1000.0,0.00019521,2]
[380091821,1755537054842,-1000.0,0.00019521,2]
[380091822,1755537054852,-1000.0,0.00019521,2]
[380091823,1755537054862,-500.67645543,0.00019521,2]
[380091824,1755537054872,-1000.0,0.00019521,2]
[380091825,1755537054881,-1000.0,0.00019521,2]
[380091826,1755537054890,-501.42275955,0.00019521,2]
[380091827,1755537054900,-1000.0,0.00019521,2]
[380091828,1755537054910,-1000.0,0.00019521,2]
[380091829,1755537054919,-200.0,0.00019561,20]
[380091830,1755537054929,-200.0,0.00019561,20]
[380091831,1755537054938,-200.0,0.00019561,20]
[380091832,1755537054948,-200.0,0.00019561,20]
[380091833,1755537054959,-200.0,0.00019561,20]
[380091834,1755537054969,-200.0,0.00019561,20]
[380091835,1755537054979,-200.0,0.00019561,20]
[380091836,1755537054989,-200.0,0.00019561,20]
[380091837,1755537054999,-200.0,0.00019561,20]
[380091838,1755537055011,-200.0,0.00019561,20]
[380091839,1755537055020,-600.0,0.00019561,20]
[380091840,1755537055029,-2500.0,0.000196,2]
[380091841,1755537055038,-151.0,0.000196,2]
[380091842,1755537055047,-151.0,0.000196,2]
[380091843,1755537055056,-486.0,0.00019611,2]
[380091844,1755537055066,-1096.02,0.00019619,2]
[380091845,1755537055074,-480.0,0.00019619,2]
[380091846,1755537055085,-1298.48,0.00019619,2]
[380091847,1755537055095,-480.0,0.00019619,2]
[380091848,1755537055105,-480.94337573,0.00019619,2]
[380091849,1755537055115,-1185.08,0.00019619,2]
[380091850,1755537055125,-480.0,0.00019619,2]
[380091851,1755537055135,-151.0,0.0001962,2]
[380091852,1755537055144,-151.0,0.0001962,2]
[380091853,1755537055154,-151.0,0.0001962,2]
[380091854,1755537055163,-151.0,0.0001962,2]
[380091855,1755537055173,-151.0,0.0001962,2]
[380091856,1755537055182,-500.0,0.0001962,2]
[380091857,1755537055192,-151.0,0.0001962,2]
[380091858,1755537055203,-500.0,0.0001962,2]
[380091859,1755537055212,-500.0,0.0001962,2]
[380091860,1755537055222,-151.0,0.0001962,2]
[380091861,1755537055233,-151.0,0.0001962,2]
[380091862,1755537055257,-151.0,0.0001962,2]
[380091863,1755537055280,-151.0,0.0001962,2]
[380091864,1755537055290,-151.0,0.0001962,2]
[380091865,1755537055300,-500.0,0.0001962,2]
[380091866,1755537055310,-151.0,0.0001962,2]
[380091867,1755537055319,-151.0,0.0001962,2]
[380091868,1755537055329,-500.0,0.0001962,2]
[380091869,1755537055342,-151.0,0.0001962,2]
[380091870,1755537055351,-151.0,0.0001962,2]
[380091871,1755537055361,-151.0,0.0001962,2]
[380091872,1755537055370,-151.0,0.0001962,2]
[380091873,1755537055379,-151.0,0.0001962,2]
[380091874,1755537055389,-151.0,0.0001962,2]
[380091875,1755537055399,-500.0,0.0001962,2]
[380091876,1755537055408,-500.0,0.0001962,2]
[380091877,1755537055418,-151.0,0.0001962,2]
[380091878,1755537055428,-500.0,0.0001962,2]
[380091879,1755537055437,-500.0,0.0001962,2]
[380091880,1755537055447,-151.24865233,0.0001962,2]
[380091881,1755537055456,-500.0,0.0001962,2]
[380091882,1755537055466,-151.0,0.0001962,2]
[380091883,1755537055475,-151.0,0.0001962,2]
[380091884,1755537055484,-151.0,0.0001962,2]
[380091885,1755537055494,-500.0,0.0001962,2]
[380091886,1755537055503,-281.0,0.00019642,2]
[380091887,1755537055513,-1160.515611,0.00019644,2]
[380091888,1755537055522,-580.787823,0.00019644,2]
[380091889,1755537055531,-580.787823,0.00019644,2]
[380091890,1755537055540,-322.3,0.00019678,2]
[380091891,1755537055549,-500.0,0.00019699,2]
[380091892,1755537055559,-151.0,0.000197,2]
[380091893,1755537055568,-151.0,0.000197,2]
[380091894,1755537055577,-500.0,0.00019713,2]
[380091895,1755537055586,-500.0,0.00019713,2]
[380091896,1755537055595,-500.0,0.00019713,2]
[380091897,1755537055604,-500.0,0.00019713,2]
[380091898,1755537055614,-239.39276831,0.00019713,2]
[380091899,1755537055623,-281.0,0.00019716,2]
[380091900,1755537055633,-500.5730939,0.00019721,2]
[380091901,1755537055643,-1000.0,0.00019721,2]
[380091902,1755537055652,-1000.0,0.00019721,2]
[380091903,1755537055662,-1000.0,0.00019721,2]
[380091904,1755537055671,-1000.0,0.00019721,2]
[380091905,1755537055680,-650.0,0.00019721,2]
[380091906,1755537055690,-402.79345135,0.00019721,2]
[380091907,1755537055699,-704.079372,0.00019721,2]
[380091908,1755537055708,-480.0,0.00019726,2]
[380091909,1755537055717,-480.0,0.00019726,2]
[380091910,1755537055726,-151.853032,0.00019726,2]
[380091911,1755537055735,-151.853032,0.00019726,2]
[380091912,1755537055744,-151.853032,0.00019726,2]
[380091913,1755537055754,-151.853032,0.00019726,2]
[380091914,1755537055763,-480.0,0.00019726,2]
[380091915,1755537055772,-480.0,0.00019726,2]
[380091916,1755537055782,-151.0,0.00019726,2]
[380091917,1755537055795,-151.0,0.00019726,2]
[380091918,1755537055804,-151.0,0.00019726,2]
[380091919,1755537055815,-480.0,0.00019726,2]
[380091920,1755537055824,-480.0,0.00019726,2]
[380091921,1755537055834,-480.0,0.00019726,2]
[380091922,1755537055843,-480.0,0.00019726,2]
[380091923,1755537055852,-480.0,0.00019726,2]
[380091924,1755537055861,-480.0,0.00019726,2]
[380091925,1755537055870,-483.99449713,0.00019726,2]
[380091926,1755537055880,-480.0,0.00019726,2]
[380091927,1755537055889,-480.0,0.00019726,2]
[380091928,1755537055899,-480.0,0.00019726,2]
[380091929,1755537055908,-480.0,0.00019726,2]
[380091930,1755537055917,-167.41615745,0.00019726,2]
[380091931,1755537055926,-480.0,0.00019726,2]
[380091932,1755537055935,-480.0,0.00019726,2]
[380091933,1755537055944,-480.0,0.00019726,2]
[380091934,1755537055953,-704.079372,0.00019726,2]
[380091935,1755537055963,-704.079367,0.00019726,2]
[380091936,1755537055972,-480.0,0.00019726,2]
[380091937,1755537055981,-895.02,0.00019726,2]
[380091938,1755537055990,-480.0,0.00019726,2]
[380091939,1755537055999,-185.048492,0.00019726,2]
[380091940,1755537056009,-185.048492,0.00019726,2]
[380091941,1755537056019,-185.048492,0.00019726,2]
[380091942,1755537056028,-120.28297172,0.00019726,2]
[380091943,1755537056294,-359.71702828,0.00019726,2]
[380091944,1755537056304,-480.0,0.00019726,2]
[380091945,1755537056314,-185.048492,0.00019726,2]
[380091946,1755537056324,-136.63400935,0.00019726,2]
[380091947,1755537056644,-515.50405582,0.00018913,2]
[380091948,1755537056654,-480.0,0.00019178,2]
[380091949,1755537056663,-245.03785685,0.00019178,2]
[380091950,1755537056673,-480.0,0.00019178,2]
[380091951,1755537056682,-457.651592,0.00019178,2]
[380091952,1755537056692,-457.651592,0.00019178,2]
[380091953,1755537056701,-457.651592,0.00019178,2]
[380091954,1755537056710,-457.651592,0.00019178,2]
[380091955,1755537056719,-457.651592,0.00019178,2]
[380091956,1755537056728,-48.41448265,0.00019726,2]
[380091957,1755537056738,-185.048492,0.00019726,2]
[380091958,1755537056747,-480.0,0.00019726,2]
[380091959,1755537056756,-486.34224013,0.00019726,2]
[380091960,1755537056766,-480.0,0.00019726,2]
[380091961,1755537056775,-480.0,0.00019726,2]
[380091962,1755537056785,-480.0,0.00019726,2]
[380091963,1755537056798,-480.0,0.00019726,2]
[380091964,1755537056807,-480.0,0.00019726,2]
[380091965,1755537056816,-480.0,0.00019726,2]
[380091966,1755537056825,-480.0,0.00019726,2]
[380091967,1755537056835,-480.0,0.00019726,2]
[380091968,1755537056845,-431.97180508,0.00019726,2]
[380091969,1755537056854,-568.3983362,0.00019726,2]
[380091970,1755537056864,-480.0,0.00019726,2]
[380091971,1755537056874,-420.0,0.00019726,2]
[380091972,1755537056883,-234.93040028,0.00019726,2]
[380091973,1755537082996,154.29450166,0.0001849,2]
[380091974,1755537103253,157.733531,0.00013699,2]
[380091975,1755537138285,900.23666112,0.000184,14]
[380091976,1755537157264,1315.91141855,0.00018489,2]
[380091977,1755537165490,169.57210808,0.00018425,2]
[380091979,1755537360571,368.0,0.00018084,2]
[380091984,1755537959053,240.321296,0.00018347,2]
[380091985,1755537959537,294.78382055,0.0001839,2]
[380091990,1755538189646,157.733531,0.00013699,2]
[380092018,1755538232073,-184.53952865,0.00018856,2]
[380092020,1755538232082,-367.79671805,0.0001886,2]
[380092026,1755538232129,-500.59501,0.0001886,2]
[380092051,1755538238116,-500.0,0.0001886,2]
[380092054,1755538238173,-1358.13776061,0.0001886,2]
[380092057,1755538238183,-1200.0,0.00018955,2]
[380092059,1755538238192,-206.0,0.00018956,2]
[380092061,1755538238201,-300.0,0.00018956,2]
[380092063,1755538238210,-300.0,0.00018956,2]
[380092065,1755538238221,-300.0,0.00018956,2]
[380092067,1755538238231,-300.0,0.00018956,2]
[380092069,1755538238240,-500.0,0.00018957,2]
[380092071,1755538238249,-152.31489871,0.00018957,2]
[380092073,1755538238259,-196.0927309,0.00018957,2]
[380092075,1755538238268,-288.45768082,0.00018957,2]
[380092077,1755538238277,-500.0,0.00018957,2]
[380092079,1755538238286,-500.0,0.00018957,2]
[380092081,1755538238294,-642.25084377,0.00018957,2]
[380092083,1755538238303,-403.73573837,0.00018957,2]
[380092085,1755538238312,-1200.0,0.00018957,2]
[380092088,1755538238321,-2756.04319097,0.00018958,2]
[380092090,1755538238332,-40382.65619377,0.00018958,2]
[380092092,1755538238343,-1250.0000102,0.00018958,2]
[380092095,1755538238364,-2954.39353748,0.00018958,2]
[380092179,1755538240075,-2656.90706758,0.00018958,2]
[380092181,1755538240085,-200.0,0.0001896,20]
[380092183,1755538240094,-200.0,0.0001896,20]
[380092185,1755538240103,-200.0,0.0001896,20]
[380092187,1755538240114,-200.0,0.0001896,20]
[380092189,1755538240123,-200.0,0.0001896,20]
[380092191,1755538240133,-200.0,0.0001896,20]
[380092193,1755538240145,-200.0,0.0001896,20]
[380092195,1755538240155,-200.0,0.0001896,20]
[380092197,1755538240164,-200.0,0.0001896,20]
[380092199,1755538240173,-100.01768452,0.0001896,20]
[380092491,1755538246244,-99.98231548,0.0001896,20]
[380092492,1755538246253,-260.16728119,0.00019014,2]
[380092493,1755538246263,-1000.0,0.00019018,2]
[380092494,1755538246272,-643.08816135,0.00019078,2]
[380092495,1755538246281,-2909.34483017,0.00019078,2]
[380092496,1755538246291,-2033.06741095,0.00019134,2]
[380092497,1755538246300,-152.87880415,0.00019166,2]
[380092498,1755538246309,-1256.96372454,0.00019166,2]
[380092500,1755538246340,-4263.1418614,0.00019166,2]
[380092501,1755538246351,-3582.4358524,0.00019166,2]
[380092505,1755539134104,-277.0,0.00019003,2]
[380092506,1755539134127,-2752.99037604,0.00019068,2]
[380092507,1755539134150,-1862.59041296,0.00019078,2]
[380092508,1755539134173,-514.47052908,0.00019078,2]
[380092509,1755539134195,-1000.0,0.00019078,2]
[380092510,1755539134220,-277.0,0.00019117,2]
[380092511,1755539134240,-300.0,0.00019163,2]
[380092512,1755539134262,-1200.0,0.00019164,2]
[380092513,1755539134284,-300.0,0.00019165,2]
[380092514,1755539134306,-164.0,0.00019165,2]
[380092515,1755539134330,-1200.0,0.00019165,2]
[380092516,1755539134355,-238.02787153,0.00019166,2]
[380092517,1755539134383,-1707.2972387,0.00019166,2]
[380092518,1755539134417,-3260.18298239,0.00019166,2]
[380092519,1755539134438,-17842.522448,0.00019166,2]
[380092520,1755539134460,-50000.0,0.00019167,2]
[380092521,1755539134485,-1855.07,0.00019168,3]
[380092522,1755539134507,-927.53,0.00019168,3]
[380092523,1755539134529,-463.77,0.00019168,3]
[380092524,1755539134552,-231.88,0.00019168,3]
[380092525,1755539134576,-695.69,0.00019168,3]
[380092526,1755539134598,-500.0,0.00019173,2]
[380092527,1755539134620,-500.0,0.00019173,2]
[380092528,1755539134643,-500.0,0.00019173,2]
[380092529,1755539134664,-650.0,0.00019173,2]
[380092530,1755539134685,-500.0,0.00019173,2]
[380092531,1755539134706,-500.0,0.00019173,2]
[380092532,1755539134727,-500.0,0.00019173,2]
[380092533,1755539134748,-500.5730939,0.00019173,2]
[380092534,1755539134769,-500.0,0.00019173,2]
[380092535,1755539134789,-500.0,0.00019173,2]
[380092536,1755539134810,-500.0,0.00019173,2]
[380092537,1755539134830,-500.0,0.00019173,2]
[380092538,1755539134851,-177.72858975,0.00019173,2]
[380092539,1755539134873,-500.0,0.00019173,2]
[380092540,1755539134892,-402.79345135,0.00019173,2]
[380092541,1755539134913,-500.0,0.00019173,2]
[380092542,1755539134933,-500.0,0.00019173,2]
[380092543,1755539134953,-500.0,0.00019173,2]
[380092544,1755539134974,-500.0,0.00019173,2]
[380092545,1755539134994,-501.42275955,0.00019173,2]
[380092546,1755539135015,-500.67645543,0.00019173,2]
[380092547,1755539135035,-500.0,0.00019173,2]
[380092548,1755539135055,-500.0,0.00019173,2]
[380092549,1755539135077,-406.85854353,0.00019177,2]
[380092550,1755539135097,-480.39873311,0.00019178,2]
[380092551,1755539135118,-480.0,0.00019178,2]
[380092552,1755539135139,-380.0,0.00019178,2]
[380092553,1755539135160,-840.44,0.00019178,2]
[380092554,1755539135182,-480.0,0.00019178,2]
[380092555,1755539135202,-480.0,0.00019178,2]
[380092556,1755539135224,-480.0,0.00019178,2]
[380092557,1755539135245,-480.0,0.00019178,2]
[380092558,1755539135266,-480.0,0.00019178,2]
[380092559,1755539135288,-460.0,0.00019178,2]
[380092560,1755539135309,-480.0,0.00019178,2]
[380092561,1755539135330,-266.14860101,0.00019178,2]
[380092562,1755539135352,-480.0,0.00019178,2]
[380092563,1755539135373,-566.59,0.00019178,2]
[380092564,1755539135397,-460.0,0.00019178,2]
[380092565,1755539135418,-464.44428695,0.00019178,2]
[380092566,1755539135439,-480.0,0.00019178,2]
[380092567,1755539135459,-480.60681905,0.00019178,2]
[380092568,1755539135480,-480.0,0.00019178,2]
[380092569,1755539135501,-480.0,0.00019178,2]
[380092570,1755539135521,-460.0,0.00019178,2]
[380092571,1755539135542,-443.75382111,0.00019178,2]
[380092572,1755539135562,-480.0,0.00019178,2]
[380092573,1755539135584,-257.14184334,0.00019178,2]
[380092574,1755539135605,-500.0,0.00019178,2]
[380092575,1755539135626,-152.38,0.00019178,2]
[380092576,1755539135646,-480.0,0.00019178,2]
[380092577,1755539135668,-554.00204686,0.00019178,2]
[380092578,1755539135688,-460.0,0.00019178,2]
[380092579,1755539135707,-480.0,0.00019178,2]
[380092580,1755539135728,-480.0,0.00019178,2]
[380092581,1755539135748,-480.0,0.00019178,2]
[380092582,1755539135768,-480.0,0.00019178,2]
[380092583,1755539135789,-480.0,0.00019178,2]
[380092584,1755539135808,-480.0,0.00019178,2]
[380092585,1755539135828,-480.0,0.00019178,2]
[380092586,1755539135848,-480.0,0.00019178,2]
[380092587,1755539135868,-480.0,0.00019178,2]
[380092588,1755539135888,-480.0,0.00019178,2]
[380092589,1755539135907,-480.0,0.00019178,2]
[380092590,1755539135930,-442.58470994,0.00019178,2]
[380092591,1755539135950,-480.0,0.00019178,2]
[380092592,1755539135970,-480.0,0.00019178,2]
[380092593,1755539135990,-480.0,0.00019178,2]
[380092594,1755539136013,-480.0,0.00019178,2]
[380092595,1755539136033,-480.0,0.00019178,2]
[380092596,1755539136052,-151.0,0.00019178,2]
[380092597,1755539136072,-480.0,0.00019178,2]
[380092598,1755539136091,-460.0,0.00019178,2]
[380092599,1755539136111,-480.0,0.00019178,2]
[380092600,1755539136131,-500.0,0.00019178,2]
[380092601,1755539136152,-151.0,0.00019178,2]
[380092602,1755539136174,-480.0,0.00019178,2]
[380092603,1755539136194,-484.52307798,0.00019178,2]
[380092604,1755539136331,-480.0,0.00019178,2]
[380092605,1755539136354,-480.0,0.00019178,2]
[380092606,1755539136375,-480.0,0.00019178,2]
[380092607,1755539136399,-480.0,0.00019178,2]
[380092608,1755539136426,-480.0,0.00019178,2]
[380092609,1755539136446,-480.0,0.00019178,2]
[380092610,1755539136468,-480.0,0.00019178,2]
[380092611,1755539136488,-480.0,0.00019178,2]
[380092612,1755539136509,-480.0,0.00019178,2]
[380092613,1755539136530,-480.0,0.00019178,2]
[380092614,1755539136553,-588.91,0.00019178,2]
[380092615,1755539136574,-151.0,0.00019178,2]
[380092616,1755539136596,-151.0,0.00019178,2]
[380092617,1755539136618,-151.0,0.00019178,2]
[380092618,1755539136639,-151.0,0.00019178,2]
[380092619,1755539136661,-480.0,0.00019178,2]
[380092620,1755539136686,-481.92089289,0.00019178,2]
[380092621,1755539136705,-301.08531365,0.00019178,2]
[380092622,1755539136724,-480.0,0.00019178,2]
[380092623,1755539136743,-480.0,0.00019178,2]
[380092624,1755539136762,-480.0,0.00019178,2]
[380092625,1755539136780,-480.0,0.00019178,2]
[380092626,1755539136799,-303.45752187,0.00019178,2]
[380092627,1755539136818,-298.86156771,0.00019178,2]
[380092628,1755539136837,-480.0,0.00019178,2]
[380092629,1755539136857,-480.0,0.00019178,2]
[380092630,1755539136877,-460.0,0.00019178,2]
[380092631,1755539136896,-480.0,0.00019178,2]
[380092632,1755539136918,-480.0,0.00019178,2]
[380092633,1755539136937,-480.0,0.00019178,2]
[380092634,1755539136956,-480.0,0.00019178,2]
[380092635,1755539136975,-480.0,0.00019178,2]
[380092636,1755539136996,-480.0,0.00019178,2]
[380092637,1755539137017,-480.0,0.00019178,2]
[380092638,1755539137038,-669.33,0.00019178,2]
[380092639,1755539137057,-480.0,0.00019178,2]
[380092640,1755539137076,-1068.83,0.00019178,2]
[380092641,1755539137097,-480.0,0.00019178,2]
[380092642,1755539137117,-500.0,0.00019178,2]
[380092643,1755539137135,-151.0,0.00019178,2]
[380092644,1755539137155,-480.0,0.00019178,2]
[380092645,1755539137177,-151.0,0.00019178,2]
[380092646,1755539137196,-480.0,0.00019178,2]
[380092647,1755539137215,-480.0,0.00019178,2]
[380092648,1755539137235,-500.0,0.00019178,2]
[380092649,1755539137255,-480.0,0.00019178,2]
[380092650,1755539137274,-151.0,0.00019178,2]
[380092651,1755539137293,-480.0,0.00019178,2]
[380092652,1755539137314,-151.0,0.00019178,2]
[380092653,1755539137334,-484.98684834,0.00019178,2]
[380092654,1755539137354,-480.0,0.00019178,2]
[380092655,1755539137377,-480.0,0.00019178,2]
[380092656,1755539137404,-480.0,0.00019178,2]
[380092657,1755539137435,-480.0,0.00019178,2]
[380092658,1755539137469,-787.26,0.00019178,2]
[380092659,1755539137488,-480.0,0.00019178,2]
[380092660,1755539137509,-480.0,0.00019178,2]
[380092661,1755539137528,-480.0,0.00019178,2]
[380092662,1755539137549,-480.0,0.00019178,2]
[380092663,1755539137568,-480.0,0.00019178,2]
[380092664,1755539137587,-480.0,0.00019178,2]
[380092665,1755539137608,-480.0,0.00019178,2]
[380092666,1755539137627,-480.0,0.00019178,2]
[380092667,1755539137647,-156.87922233,0.00019178,2]
[380092668,1755539137669,-480.0,0.00019178,2]
[380092669,1755539137690,-79.43409765,0.00019178,2]
[380092670,1755539188932,1340.0,0.00018551,2]
[380092671,1755539209086,-200.90242193,0.00018603,2]
[380092672,1755539209108,-245.25127041,0.00019134,2]
[380092673,1755539225130,-1056.44773566,0.00019134,2]
[380092674,1755539225151,-500.0,0.00019173,2]
[380092675,1755539225173,-500.0,0.00019173,2]
[380092676,1755539225193,-500.0,0.00019173,2]
[380092677,1755539225213,-1200.0,0.00019177,2]
[380092678,1755539225234,-300.0,0.00019177,2]
[380092679,1755539225255,-190.81510766,0.00019178,2]
[380092680,1755539225277,-480.0,0.00019178,2]
[380092681,1755539225297,-480.0,0.00019178,2]
[380092682,1755539225319,-480.0,0.00019178,2]
[380092683,1755539225339,-480.0,0.00019178,2]
[380092684,1755539225359,-480.0,0.00019178,2]
[380092685,1755539225380,-306.8640188,0.00019178,2]
[380092686,1755539225405,-480.0,0.00019178,2]
[380092687,1755539225427,-480.0,0.00019178,2]
[380092688,1755539225448,-480.0,0.00019178,2]
[380092689,1755539225584,-480.0,0.00019178,2]
[380092690,1755539225604,-480.0,0.00019178,2]
[380092691,1755539225623,-480.0,0.00019178,2]
[380092692,1755539225644,-480.0,0.00019178,2]
[380092693,1755539225668,-480.0,0.00019178,2]
[380092694,1755539225688,-480.0,0.00019178,2]
[380092695,1755539225708,-629.75423838,0.00019178,2]
[380092696,1755539225728,-480.0,0.00019178,2]
[380092697,1755539225749,-167.41615745,0.00019178,2]
[380092698,1755539225772,-480.0,0.00019178,2]
[380092699,1755539225794,-466.48896139,0.00019178,2]
[380092700,1755539225813,-480.0,0.00019178,2]
[380092701,1755539225834,-480.0,0.00019178,2]
[380092702,1755539225854,-480.0,0.00019178,2]
[380092703,1755539225874,-482.17539499,0.00019178,2]
[380092704,1755539225894,-480.0,0.00019178,2]
[380092705,1755539225914,-480.0,0.00019178,2]
[380092706,1755539225935,-480.0,0.00019178,2]
[380092707,1755539225955,-480.0,0.00019178,2]
[380092708,1755539225974,-480.0,0.00019178,2]
[380092709,1755539225994,-480.0,0.00019178,2]
[380092710,1755539226015,-480.0,0.00019178,2]
[380092711,1755539226037,-480.0,0.00019178,2]
[380092712,1755539226056,-480.0,0.00019178,2]
[380092713,1755539226077,-480.0,0.00019178,2]
[380092714,1755539226099,-445.35109414,0.00019178,2]
[380092715,1755539226119,-119.53638453,0.00019178,2]
[380092716,1755539235106,-1000.0,0.00019177,2]
[380092717,1755539235129,-340.46361547,0.00019178,2]
[380092718,1755539235155,-480.0,0.00019178,2]
[380092719,1755539235177,-480.0,0.00019178,2]
[380092720,1755539235200,-800.07,0.00019178,2]
[380092721,1755539235224,-480.0,0.00019178,2]
[380092722,1755539235247,-500.0,0.00019178,2]
[380092723,1755539235271,-500.0,0.00019178,2]
[380092724,1755539235294,-500.0,0.00019178,2]
[380092725,1755539235318,-500.0,0.00019178,2]
[380092726,1755539235341,-500.0,0.00019178,2]
[380092727,1755539235363,-480.0,0.00019178,2]